[Event "3rd Mersin Open 2018"]
[Site "Mersin"]
[Date "2018.09.14"]
[Round "7.12"]
[White "Zuberoglu, Ibrahim Berk"]
[Black "Hatirli, Ugur Can"]
[Result "1-0"]
[ECO "D79"]
[WhiteElo "1633"]
[BlackElo "1608"]
[Annotator "NA RC"]
[PlyCount "67"]
[EventDate "2018.09.09"]
[EventType "swiss"]
[EventCountry "TUR"]
[SourceTitle "playchess.com"]
[Source "ChessBase"]
[SourceQuality "1"]
[TimeControl "5400+30"]

1. Nf3 {[%emt 0:00:30]} d5 {[%emt 0:00:30]} 2. c4 {[%emt 0:00:30]} c6 {[%emt 0:00:00]} 3. g3 {[%emt 0:00:30]} g6 {[%emt 0:00:00]} 4. Bg2 {[%emt 0:00:30]} Bg7 {[%emt 0:00:00]} 5. cxd5 {[%emt 0:06:30]} cxd5 {[%emt 0:00:00]} 6. d4 {[%emt 0:00:00]} Nf6 {[%emt 0:00:30]} 7. Nc3 {[%emt 0:02:00]} Nc6 {[%emt 0:00:30]} 8. O-O {[%emt 0:04:30]} O-O {[%emt 0:00:30]} 9. Ne5 {[%emt 0:03:30]} e6 {[%emt 0:01:30]} 10. Nxc6 {[%emt 0:03:30]} bxc6 {[%emt 0:00:30]} 11. Bf4 {[%emt 0:02:30]} Nd7 {[%emt 0:05:30]} 12. e4 {[%emt 0:06:30]} Qb6 {[%emt 0:05:30]} 13. Qa4 {[%emt 0:07:30]} Bxd4 {[%emt 0:08:30]} 14. exd5 {[%emt 0:00:30]} Ba6 {[%emt 0:04:30]} 15. Rfd1 {[%emt 0:05:30]} Bxf2+ {[%emt 0:00:30]} 16. Kh1 {[%emt 0:00:30]} Bb5 {[%emt 0:05:30]} 17. Nxb5 {[%emt 0:04:30]} cxb5 {[%emt 0:00:00]} 18. Qb3 {[%emt 0:00:30]} e5 {[%emt 0:03:00]} 19. Bh6 {[%emt 0:00:30]} Rfe8 {[%emt 0:00:30]} 20. Rf1 {[%emt 0:02:30]} Rac8 {[%emt 0:05:30]} 21. d6 {[%emt 0:04:30]} e4 {[%emt 0:02:30]} 22. Rxf2 {[%emt 0:02:30]} Qxf2 {[%emt 0:02:30]} 23. Rf1 {[%emt 0:00:30]} e3 {[%emt 0:00:30]} 24. Rxf2 {[%emt 0:01:30]} exf2 {[%emt 0:00:30]} 25. Bf1 {[%emt 0:00:00]} Rc5 {[%emt 0:05:30]} 26. Qf3 {[%emt 0:08:00]} Rf5 {[%emt 0:00:30]} 27. Qc6 {[%emt 0:01:30]} Nf6 {[%emt 0:02:30]} 28. d7 {[%emt 0:00:30]} Nxd7 {[%emt 0:01:30]} 29. Qxd7 {[%emt 0:00:30]} Rfe5 {[%emt 0:00:30]} 30. Kg2 {[%emt 0:00:30]} R5e7 {[%emt 0:00:30]} 31. Qd4 {[%emt 0:00:30]} Re5 {[%emt 0:00:30]} 32. Bxb5 {[%emt 0:01:30]} f1=B+ {[%emt 0:00:30]} 33. Kxf1 {[%emt 0:00:30]} Re1+ {[%emt 0:02:30]} 34. Kf2 {[%emt 0:00:30]} 1-0

[Event "3rd Mersin Open 2018"]
[Site "Mersin"]
[Date "2018.09.14"]
[Round "7.13"]
[White "Kiyak, Ali"]
[Black "Menken, Ekin"]
[Result "0-1"]
[ECO "B51"]
[WhiteElo "1580"]
[BlackElo "1706"]
[Annotator "NA RC"]
[PlyCount "84"]
[EventDate "2018.09.09"]
[EventType "swiss"]
[EventCountry "TUR"]
[SourceTitle "playchess.com"]
[Source "ChessBase"]
[SourceQuality "1"]
[TimeControl "5400+30"]

1. e4 {[%emt 0:00:30]} c5 {[%emt 0:00:30]} 2. Nf3 {[%emt 0:00:00]} d6 {[%emt 0:00:30]} 3. Bb5+ {[%emt 0:00:00]} Nd7 {[%emt 0:00:30]} 4. d4 {[%emt 0:05:30]} cxd4 {[%emt 0:00:30]} 5. Qxd4 {[%emt 0:00:30]} a6 {[%emt 0:02:30]} 6. Bxd7+ {[%emt 0:03:30]} Bxd7 {[%emt 0:00:00]} 7. Nc3 {[%emt 0:04:30]} e5 {[%emt 0:03:00]} 8. Qd3 {[%emt 0:02:30]} h6 {[%emt 0:02:30]} 9. Be3 {[%emt 0:02:30]} Nf6 {[%emt 0:02:30]} 10. h3 {[%emt 0:02:30]} Be7 {[%emt 0:01:30]} 11. O-O {[%emt 0:05:30]} O-O {[%emt 0:01:30]} 12. a4 {[%emt 0:01:30]} Bc6 {[%emt 0:06:30]} 13. a5 {[%emt 0:15:30]} Rc8 {[%emt 0:01:30]} 14. Rfd1 {[%emt 0:01:30]} Qd7 {[%emt 0:02:30]} 15. Nd2 {[%emt 0:05:30]} Qe6 {[%emt 0:23:30]} 16. Nc4 {[%emt 0:04:30]} Nxe4 {[%emt 0:09:30]} 17. Nxe4 {[%emt 0:01:30]} Bxe4 {[%emt 0:00:30]} 18. Qxe4 {[%emt 0:00:30]} Rxc4 {[%emt 0:00:30]} 19. Qxb7 {[%emt 0:00:30]} Rxc2 {[%emt 0:00:30]} 20. Qxa6 {[%emt 0:02:30]} Rxb2 {[%emt 0:00:30]} 21. Rab1 {[%emt 0:02:30]} Ra2 {[%emt 0:02:30]} 22. Rb6 {[%emt 0:03:30]} Qf5 {[%emt 0:04:30]} 23. Qc4 {[%emt 0:01:30]} Rxa5 {[%emt 0:00:30]} 24. Rb7 {[%emt 0:00:30]} Re8 {[%emt 0:04:30]} 25. Qc6 {[%emt 0:02:30]} Kf8 {[%emt 0:06:30]} 26. Ba7 {[%emt 0:02:30]} Qc8 {[%emt 0:03:30]} 27. Qb6 {[%emt 0:06:30]} Ra2 {[%emt 0:03:06]} 28. Rb1 {[%emt 0:02:30]} Rc2 {[%emt 0:07:38]} 29. Qe3 {[%emt 0:09:01]} Rc7 {[%emt 0:01:33]} 30. Rb8 {[%emt 0:07:37]} Qd7 {[%emt 0:00:27]} 31. Rxe8+ {[%emt 0:00:32]} Qxe8 {[%emt 0:00:28]} 32. Rb8 {[%emt 0:03:28]} Rc8 {[%emt 0:00:06]} 33. Qb6 {[%emt 0:00:23]} Rxb8 {[%emt 0:00:54]} 34. Bxb8 {[%emt 0:00:04]} Qd7 {[%emt 0:00:09]} 35. Bc7 {[%emt 0:00:14]} g6 {[%emt 0:00:36]} 36. g3 {[%emt 0:01:04]} Kg7 {[%emt 0:00:48]} 37. Kg2 {[%emt 0:00:04]} Qe6 {[%emt 0:00:12]} 38. Qc6 {[%emt 0:01:10]} e4 {[%emt 0:01:31]} 39. Bb6 {[%emt 0:00:56]} d5 {[%emt 0:01:33]} 40. Bd4+ {[%emt 0:00:21]} Bf6 {[%emt 0:00:03]} 41. Bxf6+ {[%emt 0:00:07]} Kxf6 {[%emt 0:00:05]} 42. Qc3+ {[%emt 0:00:38]} Qe5 {[%emt 0:00:11]} 0-1